fUSD/lending_fUSD_20240328
["ID","MTS","AMOUNT","RATE_DAILY","PERIOD"]
[320854967,1711638633136,-1202.54405473,0.0004,7]
[320854969,1711638633147,-282.16973355,0.00040331,4]
[320854971,1711638633157,-3082.76030407,0.00040332,2]
[320855121,1711638638282,-1825.84600079,0.00040332,2]
[320855124,1711638638291,-5459.56577711,0.00040332,2]
[320855137,1711638638355,-8765.30827229,0.00040332,2]
[320855140,1711638638365,-3785.31038214,0.0004042,2]
[320855142,1711638638375,-975.23784153,0.0004043,4]
[320855144,1711638638384,-441.35365184,0.0004043,4]
[320855146,1711638638394,-223.77566994,0.0004043,4]
[320855148,1711638638404,-2342.82778821,0.0004043,4]
[320855150,1711638638413,-155.13484327,0.0004043,4]
[320855152,1711638638422,-155.6978955,0.0004043,4]
[320855154,1711638638431,-309.69326171,0.0004043,4]
[320855156,1711638638441,-520.77623655,0.0004043,4]
[320855158,1711638638450,-758.88704654,0.0004043,4]
[320855160,1711638638460,-569.63225209,0.0004043,4]
[320855162,1711638638470,-569.51848263,0.0004043,2]
[320855164,1711638638479,-129740.8187,0.00040432,2]
[320855166,1711638638488,-1000.0,0.00040432,2]
[320855168,1711638638497,-150.0,0.0004046,2]
[320855170,1711638638506,-3817.2553,0.00040523,3]
[320855172,1711638638515,-1739.0518,0.00040525,2]
[320855174,1711638638523,-308.54413632,0.00040525,9]
[320855175,1711638638533,-174.46365172,0.00040525,2]
[320855177,1711638638542,-253.316563,0.00040548,14]
[320855179,1711638638551,-150.2,0.00040557,2]
[320855180,1711638638560,-1302.70431,0.0004059,5]
[320855181,1711638638569,-195.98250485,0.00040604,14]
[320855182,1711638638578,-152.3012037,0.00040611,9]
[320855183,1711638638587,-319.02838023,0.00040611,2]
[320855184,1711638638596,-236.97460966,0.00040611,12]
[320855185,1711638638606,-152.22765249,0.00040624,31]
[320855186,1711638638615,-5318.3857,0.00040625,2]
[320855187,1711638638623,-100000.0,0.00040625,2]
[320855188,1711638638632,-2471.54181967,0.00040625,14]
[320855189,1711638638642,-753.12,0.00040638,2]
[320855190,1711638638651,-201.26328578,0.00040701,2]
[320855191,1711638638660,-153.74131687,0.0004071,31]
[320855192,1711638638669,-13918.89866133,0.00040711,2]
[320855193,1711638638678,-10183.05039123,0.00040711,2]
[320855194,1711638638687,-885.47150727,0.00040711,2]
[320855195,1711638638696,-12238.56848039,0.00040711,2]
[320855196,1711638638708,-2516.80505927,0.00040711,2]
[320855197,1711638638721,-2458.11796431,0.00040711,2]
[320855198,1711638638732,-765.524,0.00040711,2]
[320855199,1711638638744,-8783.61752063,0.00040711,2]
[320855200,1711638638753,-9248.50535617,0.00040711,2]
[320855201,1711638638762,-467.29316813,0.00040711,2]
[320855202,1711638638771,-239.83464382,0.00040711,2]
[320855204,1711638638780,-384.02927467,0.00040711,2]
[320855206,1711638638789,-14767.67779237,0.00040711,2]
[320855207,1711638638798,-859.04224422,0.00040711,2]
[320855208,1711638638835,-2623.69172155,0.00040711,2]
[320855236,1711638640388,-395.495052,0.00040525,2]
[320855241,1711638640402,-94.274948,0.00040525,2]
[320855244,1711638640412,-501.61430194,0.00040711,2]
[320855604,1711638643575,-12521.7400001,0.00040711,2]
[320855612,1711638643636,-544.68,0.00040711,2]
[320855627,1711638643765,-1769.976,0.00040711,2]
[320855634,1711638643818,-2498.61954072,0.00040711,2]
[320855636,1711638643830,-316.10917794,0.00040711,2]
[320855638,1711638643841,-1761.67181642,0.00040711,2]
[320855640,1711638643853,-2561.40514491,0.00040711,10]
[320855644,1711638643881,-8.79712711,0.00040711,10]
[320855647,1711638643894,-1361.1789632,0.00040711,10]
[320855697,1711638646379,-643.27811494,0.00040711,10]
[320855698,1711638646391,-531.49241731,0.00040711,2]
[320855699,1711638646403,-4898.13682148,0.00040711,2]
[320855700,1711638646414,-353.55628182,0.00040711,2]
[320855701,1711638646425,-591.03019232,0.00040711,2]
[320855702,1711638646436,-128.77017213,0.00040711,2]
[320855703,1711638646496,-1287.06115768,0.00040711,2]
[320855704,1711638646523,-8055.6416436,0.00040711,2]
[320855705,1711638646534,-34840.11881562,0.00040711,2]
[320855706,1711638646545,-432371.22747428,0.00040711,2]
[320855707,1711638646565,-8145.47003611,0.00040711,2]
[320855708,1711638646626,-1296.02252825,0.00040711,2]
[320855709,1711638646686,-43505.10946707,0.00040711,2]
[320855710,1711638646698,-18917.49145709,0.00040711,3]
[320855711,1711638646709,-1782.8555296,0.00040711,2]
[320855712,1711638646722,-2163.35635638,0.00040711,14]
[320855713,1711638646732,-3829.00128765,0.00040711,3]
[320855714,1711638646744,-336.72002008,0.00040711,2]
[320855715,1711638646756,-1610.31037854,0.00040711,2]
[320855716,1711638646770,-3413.17909244,0.00040711,2]
[320855717,1711638646781,-32432.24073288,0.00040711,20]
[320855719,1711638662805,594.24,0.00027286,2]
[320855723,1711638735006,968.18466913,0.00027286,2]
[320855726,1711638829804,152.30107004,0.00040705,36]
[320855727,1711638830661,152.30107004,0.00040705,36]
[320855728,1711639383741,1000.0,0.00040699,120]
[320855729,1711639414546,1000.0,0.00040699,120]
[320855730,1711639434686,152.30107004,0.00040699,36]
[320855731,1711639435635,152.30107004,0.00040699,36]
[320855737,1711639645494,451.80419507,0.00029,3]
[320855739,1711639774212,-400.0,0.00028994,2]
[320855740,1711639774234,-218.46785975,0.00028995,2]
[320855741,1711639774256,-1652.62174025,0.00028995,2]
[320855743,1711639831543,-464.14738448,0.00028994,2]
[320855744,1711639831555,-347.37825975,0.00028995,2]
[320855745,1711639831565,-1569.0,0.00028996,2]
[320855746,1711639831575,-798.19580493,0.00029,3]
[320855747,1711639831586,-68.01392791,0.00031,3]
[320855748,1711639831601,-1231.98607209,0.00031,3]
[320855749,1711639831613,-27.04963029,0.00031125,2]
[320855750,1711639832399,-132.75036971,0.00031125,2]
[320855751,1711639832408,-1350.0,0.00033,3]
[320855752,1711639832418,-1400.0,0.00035,3]
[320855753,1711639832427,-439.85364439,0.00036297,7]
[320855754,1711639832437,-759.45,0.00036883,2]
[320855755,1711639832447,-1450.0,0.00037,3]
[320855756,1711639832457,-3573.5,0.00037715,2]
[320855757,1711639832466,-263.95,0.00037715,2]
[320855758,1711639832475,-150.2,0.00038221,2]
[320855759,1711639832487,-218.46785975,0.00038378,4]
[320855760,1711639832496,-341.37090659,0.00038378,2]
[320855761,1711639832505,-4189.31929113,0.00038379,2]
[320855762,1711639832535,-4747.5908215,0.00038379,2]
[320855763,1711639832547,-14953.08988737,0.00038379,2]
[320855764,1711639832557,-5022.02,0.00038391,2]
[320855765,1711639832566,-250.0,0.00038393,112]
[320855766,1711639832575,-335.46,0.00038446,15]
[320855767,1711639832585,-3476.51,0.00038466,2]
[320855768,1711639832595,-250.0,0.00038504,2]
[320855769,1711639832607,-709.73,0.00038671,2]
[320855770,1711639832617,-289.04,0.00038772,2]
[320855771,1711639832626,-800.0,0.00038773,2]
[320855772,1711639832635,-155.13,0.00038796,120]
[320855773,1711639832645,-250.0,0.00038799,2]
[320855774,1711639832654,-341.03,0.00038809,2]
[320855775,1711639832667,-500.0,0.00038811,2]
[320855776,1711639832676,-155.68798612,0.00038919,4]
[320855777,1711639832686,-250.75551345,0.0003892,4]
[320855778,1711639832696,-807.76796402,0.0003892,4]
[320855779,1711639832705,-1500.0,0.00039,3]
[320855780,1711639832715,-759.45,0.00039147,2]
[320855781,1711639832724,-200.0,0.00039288,2]
[320855782,1711639832737,-168.68,0.00039363,2]
[320855783,1711639832747,-150.2,0.00039514,2]
[320855784,1711639832756,-3619.7,0.00039633,2]
[320855785,1711639832765,-10013.44462842,0.00039656,2]
[320855786,1711639832775,-202.65325,0.00039726,14]
[320855787,1711639832784,-164.83,0.00039822,2]
[320855788,1711639832793,-213.5609364,0.00039927,30]
[320855789,1711639832803,-164.08,0.00040105,2]
[320855790,1711639832814,-170.68,0.00040132,2]
[320855791,1711639832825,-5000.0,0.00040258,2]
[320855792,1711639832834,-264.14298889,0.0004033,4]
[320855793,1711639832843,-6395.06891356,0.00040331,2]
[320855794,1711639832852,-1344.2702,0.00040332,2]
[320855795,1711639832861,-7740.9196,0.00040332,2]
[320855796,1711639832871,-432.237,0.00040405,2]
[320855797,1711639832880,-2984.3773,0.00040405,2]
[320855798,1711639832889,-181.74660482,0.000405,2]
[320855799,1711639832898,-208.7937,0.00040505,2]
[320855800,1711639832907,-202.65325,0.00040548,14]
[320855801,1711639832916,-12802.38664446,0.00040609,2]
[320855802,1711639832926,-4417.74567432,0.00040609,2]
[320855803,1711639832935,-319.02838023,0.00040609,2]
[320855804,1711639832944,-15301.0108,0.00040609,2]
[320855805,1711639832954,-5000.0,0.00040644,2]
[320855806,1711639832963,-400.99807444,0.00040709,2]
[320855807,1711639832972,-4125.6485,0.00040709,4]
[320855809,1711639832983,-3594.77123328,0.00040709,2]
[320855812,1711639832992,-463.0,0.00040709,30]
[320855815,1711639833002,-400438.83843444,0.00040709,20]
[320855818,1711639833011,-11490.53797689,0.00040709,2]
[320855821,1711639833020,-13000.0,0.00040709,2]
[320855824,1711639833029,-1002.63518318,0.00040709,2]
[320855825,1711639833039,-13630.12018088,0.00040709,2]
[320855826,1711639833048,-213.67600315,0.00040709,2]
[320855827,1711639833057,-635.64160995,0.00040709,2]
[320855828,1711639833066,-1001.76341006,0.00040709,2]
[320855829,1711639833075,-250.0,0.00040709,20]
[320855830,1711639833084,-4262.08011559,0.00040709,2]
[320855831,1711639833093,-1234.26038968,0.00040709,4]
[320855832,1711639833102,-309.02243162,0.00040709,14]
[320855833,1711639833111,-1569.45228096,0.00040709,7]
[320855834,1711639833121,-6500.42288407,0.00040709,4]
[320855835,1711639833130,-839.34761564,0.00040709,7]
[320855836,1711639833139,-933.23360707,0.00040709,20]
[320855837,1711639833148,-14441.49389719,0.00040709,4]
[320855838,1711639833157,-1000.0,0.00040709,2]
[320855839,1711639833166,-1000.0,0.00040709,2]
[320855840,1711639833175,-1000.0,0.00040709,2]
[320855841,1711639833184,-1000.0,0.00040709,2]
[320855842,1711639833193,-1000.0,0.00040709,2]
[320855843,1711639833202,-1594.722454,0.00040709,2]
[320855844,1711639833211,-1446.66698,0.00040711,5]
[320855845,1711639833221,-7746.07556118,0.00040723,4]
[320855846,1711639833232,-397.2807249,0.00040724,2]
[320855847,1711639833242,-18675.78508855,0.00040725,4]
[320855848,1711639833251,-221.89020844,0.00040727,4]
[320855849,1711639833261,-554.68571021,0.00040727,10]
[320855850,1711639833271,-422.11636221,0.0004073,4]
[320855851,1711639833280,-484.40481559,0.0004073,4]
[320855852,1711639833290,-155.0,0.0004073,4]
[320855853,1711639833299,-280.81030029,0.00040731,2]
[320855854,1711639833308,-405.0432097,0.00040731,4]
[320855855,1711639833317,-281.76622949,0.00040731,4]
[320855856,1711639833326,-290.07581197,0.00040732,2]
[320855857,1711639833335,-150.2,0.00040807,2]
[320855858,1711639833345,-172.26,0.00040911,2]
[320855859,1711639833354,-1550.0,0.00041,3]
[320855860,1711639833363,-183.0,0.00041096,2]
[320855861,1711639833372,-1500.0,0.00041096,120]
[320855862,1711639833381,-335.46,0.00041186,15]
[320855863,1711639833390,-3476.51,0.00041205,2]
[320855864,1711639833399,-1446.66699,0.0004135,8]
[320855865,1711639833408,-202.65325,0.0004137,14]
[320855866,1711639833417,-759.45,0.00041411,2]
[320855867,1711639833426,-176.19,0.00041918,2]
[320855868,1711639833435,-165.76067859,0.00042,2]
[320855869,1711639833444,-165.76067859,0.00042,2]
[320855870,1711639833453,-165.76067859,0.00042,2]
[320855871,1711639833462,-165.76067859,0.00042,2]
[320855872,1711639833471,-165.76067859,0.00042,2]
[320855873,1711639833481,-165.76067859,0.00042,2]
[320855874,1711639833490,-165.76067859,0.00042,2]
[320855875,1711639833499,-165.76067859,0.00042,2]
[320855876,1711639833508,-165.76067859,0.00042,2]
[320855877,1711639833518,-165.76067859,0.00042,2]
[320855878,1711639833527,-165.76067859,0.00042,2]
[320855879,1711639833536,-165.76067859,0.00042,2]
[320855880,1711639833546,-165.76067859,0.00042,2]
[320855881,1711639833555,-165.76067859,0.00042,2]
[320855882,1711639833564,-165.76067859,0.00042,2]
[320855883,1711639833573,-165.76067859,0.00042,2]
[320855884,1711639833582,-165.76067859,0.00042,2]
[320855885,1711639833592,-165.76067859,0.00042,2]
[320855886,1711639833601,-165.76067859,0.00042,2]
[320855887,1711639833610,-165.76067859,0.00042,2]
[320855888,1711639833619,-165.76067859,0.00042,2]
[320855889,1711639833629,-165.76067859,0.00042,2]
[320855890,1711639833639,-165.76067859,0.00042,2]
[320855891,1711639833648,-165.76067859,0.00042,2]
[320855892,1711639833657,-165.76067859,0.00042,2]
[320855893,1711639833667,-165.76067859,0.00042,2]
[320855894,1711639833676,-165.76067859,0.00042,2]
[320855895,1711639833686,-165.76067859,0.00042,2]
[320855896,1711639833695,-165.76067859,0.00042,2]
[320855897,1711639833705,-165.76067859,0.00042,2]
[320855898,1711639833715,-165.76067859,0.00042,2]
[320855899,1711639833725,-165.76067859,0.00042,2]
[320855900,1711639833738,-165.76067859,0.00042,2]
[320855901,1711639833747,-165.76067859,0.00042,2]
[320855902,1711639833757,-165.76067859,0.00042,2]
[320855903,1711639833767,-165.76067859,0.00042,2]
[320855904,1711639833777,-165.76067859,0.00042,2]
[320855905,1711639833786,-165.76067859,0.00042,2]
[320855906,1711639833796,-165.76067859,0.00042,2]
[320855907,1711639833805,-165.76067859,0.00042,2]
[320855908,1711639833815,-165.76067859,0.00042,2]
[320855909,1711639833825,-1300.95144486,0.0004201,2]
[320855910,1711639833834,-150.2,0.00042101,2]
[320855911,1711639833844,-164.63,0.00042155,2]
[320855912,1711639833853,-12802.38664441,0.00042326,2]
[320855913,1711639833862,-4417.74567431,0.00042326,2]
[320855914,1711639833871,-1446.66699,0.000426,14]
[320855915,1711639833881,-180.0,0.00042639,2]
[320855916,1711639833890,-16000.0,0.00043,30]
[320855917,1711639833900,-1600.0,0.00043,3]
[320855918,1711639833909,-287.28316374,0.000431,12]
[320855919,1711639833918,-172.26,0.00043162,2]
[320855920,1711639833928,-150.2,0.00043394,2]
[320855921,1711639833937,-166.79,0.0004349,2]
[320855922,1711639833946,-800.0,0.0004362,2]
[320855923,1711639833955,-759.45,0.00043675,2]
[320855924,1711639833964,-1446.66699,0.0004385,20]
[320855925,1711639833973,-515.4593691,0.00043888,2]
[320855926,1711639833984,-200.0,0.00043918,25]
[320855927,1711639833994,-335.46,0.00043926,15]
[320855928,1711639834003,-3476.51,0.00043945,2]
[320855929,1711639834011,-414.95,0.00043968,2]
[320855930,1711639834021,-2864.93261677,0.00044,2]
[320855931,1711639834031,-224.54254856,0.00044,32]
[320855932,1711639834041,-12802.38664441,0.00044043,2]
[320855933,1711639834051,-4417.74567431,0.00044043,2]
[320855934,1711639834060,-200.0,0.00044199,2]
[320855935,1711639834071,-269.83900737,0.00044444,7]
[320855936,1711639834081,-150.2,0.00044687,2]
[320855937,1711639834089,-502.24281567,0.00045,4]
[320855938,1711639834100,-1650.0,0.00045,3]
[320855939,1711639834109,-200.0,0.00045091,25]
[320855940,1711639834117,-800.0,0.00045091,25]
[320855941,1711639834127,-500.0,0.00045091,30]
[320855942,1711639834136,-200.0,0.00045091,30]
[320855943,1711639834145,-1446.66699,0.000451,26]
[320855944,1711639834154,-155.13,0.00045262,120]
[320855945,1711639834164,-172.26,0.00045413,2]
[320855946,1711639834174,-12802.38664441,0.00045761,2]
[320855947,1711639834186,-4417.74567431,0.00045761,2]
[320855948,1711639834196,-500.0,0.000459,16]
[320855949,1711639834205,-759.45,0.00045939,2]
[320855950,1711639834215,-150.2,0.0004598,2]
[320855951,1711639834224,-309.18902884,0.00046,3]
[320855952,1711639834236,-1446.66699,0.0004635,32]
[320855953,1711639834249,-517.9,0.00046413,2]
[320855954,1711639834259,-347.28,0.00046413,2]
[320855955,1711639834268,-150.0,0.00046413,2]
[320855956,1711639834277,-150.0,0.00046413,2]
[320855957,1711639834287,-517.9,0.00046413,2]
[320855958,1711639834297,-392.89,0.00046413,2]
[320855959,1711639834306,-3302.34182559,0.00046425,2]
[320855960,1711639834316,-335.46,0.00046665,15]
[320855961,1711639834325,-166.79,0.00046805,2]
[320855962,1711639834335,-1399.97,0.00047,14]
[320855963,1711639834344,-1027.2482075,0.00047,2]
[320855964,1711639834354,-1700.0,0.00047,3]
[320855965,1711639834363,-150.2,0.00047273,2]
[320855966,1711639834372,-12802.38664441,0.00047478,2]
[320855967,1711639834381,-4417.74567431,0.00047478,2]
[320855968,1711639834391,-1458.862,0.00047569,2]
[320855969,1711639834400,-358.0,0.00047569,2]
[320855970,1711639834410,-465.213,0.00047569,2]
[320855971,1711639834420,-1625.0,0.00047569,2]
[320855972,1711639834429,-213.0,0.00047569,2]
[320855973,1711639834437,-150.0,0.00047569,2]
[320855974,1711639834447,-4773.0,0.00047569,2]
[320855975,1711639834456,-5675.0,0.00047569,2]
[320855976,1711639834465,-960.0,0.00047569,2]
[320855977,1711639834475,-813.337,0.00047569,2]
[320855978,1711639834486,-2447.0,0.00047569,2]
[320855979,1711639834495,-1380.0,0.00047569,2]
[320855980,1711639834504,-2367.11119889,0.00047569,2]
[320855981,1711639834594,-165.76067859,0.00042,2]
[320855982,1711639834603,-24711.42645779,0.00047569,2]
[320855983,1711639834828,-250.18787638,0.00047569,2]
[320855984,1711639834921,-993.79654298,0.00047569,2]
[320855985,1711639834933,-5580.56034063,0.00047569,2]
[320855986,1711639834989,-165.76067859,0.00042,2]
[320855987,1711639834998,-165.76067859,0.00042,2]
[320855988,1711639835007,-294.27273303,0.00047569,2]
[320855991,1711639837796,-165.76067859,0.00042,2]
[320855992,1711639837806,-165.76067859,0.00042,2]
[320855993,1711639837815,-24.39864282,0.00042,2]
[320855997,1711639837952,-141.36203577,0.00042,2]
[320855999,1711639837962,-165.76067859,0.00042,2]
[320856001,1711639837971,-165.76067859,0.00042,2]
[320856003,1711639837981,-165.76067859,0.00042,2]
[320856005,1711639837991,-165.76067859,0.00042,2]
[320856007,1711639838000,-165.76067859,0.00042,2]
[320856010,1711639838012,-165.76067859,0.00042,2]
[320856012,1711639838022,-165.76067859,0.00042,2]
[320856013,1711639838032,-165.76067859,0.00042,2]
[320856015,1711639838041,-165.76067859,0.00042,2]
[320856017,1711639838051,-165.76067859,0.00042,2]
[320856019,1711639838060,-165.76067859,0.00042,2]
[320856021,1711639838069,-165.76067859,0.00042,2]
[320856023,1711639838079,-165.76067859,0.00042,2]
[320856024,1711639838088,-165.76067859,0.00042,2]
[320856025,1711639838098,-165.76067859,0.00042,2]
[320856026,1711639838114,-165.76067859,0.00042,2]
[320856027,1711639838127,-165.76067859,0.00042,2]
[320856028,1711639838136,-165.76067859,0.00042,2]
[320856029,1711639838145,-165.76067859,0.00042,2]
[320856030,1711639838155,-165.76067859,0.00042,2]
[320856031,1711639838164,-165.76067859,0.00042,2]
[320856032,1711639838174,-165.76067859,0.00042,2]
[320856033,1711639838184,-165.76067859,0.00042,2]
[320856034,1711639838193,-165.76067859,0.00042,2]
[320856035,1711639838203,-165.76067859,0.00042,2]
[320856036,1711639838214,-165.76067859,0.00042,2]
[320856037,1711639838223,-202.65325,0.00042192,14]
[320856038,1711639838234,-1685.39656611,0.00047569,2]
[320856039,1711639838247,-1042.3093472,0.00047569,2]
[320856040,1711639838280,-165.76067859,0.00042,2]
[320856041,1711639838290,-134.55932141,0.00047569,2]
[320856042,1711639838311,-3593.85428938,0.00047569,2]
[320856059,1711639839529,-165.76067859,0.00042,2]
[320856061,1711639839539,-165.76067859,0.00042,2]
[320856063,1711639839548,-165.76067859,0.00042,2]
[320856065,1711639839558,-165.76067859,0.00042,2]
[320856067,1711639839567,-165.76067859,0.00042,2]
[320856069,1711639839577,-165.76067859,0.00042,2]
[320856071,1711639839586,-165.76067859,0.00042,2]
[320856073,1711639839595,-165.76067859,0.00042,2]
[320856075,1711639839604,-165.76067859,0.00042,2]
[320856077,1711639839613,-165.76067859,0.00042,2]
[320856079,1711639839622,-165.76067859,0.00042,2]
[320856081,1711639839632,-2328.5253262,0.00047569,2]
[320856083,1711639839641,-1226.0,0.00047569,2]
[320856085,1711639839650,-1047.0,0.00047569,2]
[320856087,1711639839660,-172.26,0.00047663,2]
[320856089,1711639839669,-581.48668888,0.00047875,13]
[320856091,1711639839679,-941.76181789,0.00047906,30]
[320856093,1711639839689,-691.98202412,0.00048,2]
[320856094,1711639839698,-344.88888889,0.00048,120]
[320856096,1711639839707,-13180.80625617,0.00048,30]
[320856098,1711639839718,-153.66038792,0.0004817,30]
[320856100,1711639839729,-5000.0,0.00048183,2]
[320856102,1711639839740,-759.45,0.00048203,2]
[320856104,1711639839750,-941.76181789,0.00048207,30]
[320856106,1711639839760,-150.0,0.00048389,120]
[320856108,1711639839770,-212.0,0.000484,2]
[320856110,1711639839780,-165.34496076,0.00048422,30]
[320856112,1711639839789,-179.6506294,0.00048466,24]
[320856114,1711639839799,-800.0,0.00048466,2]
[320856116,1711639839809,-941.76181789,0.00048488,30]
[320856118,1711639839819,-200.0,0.0004849,90]
[320856120,1711639839829,-125418.90779194,0.000485,120]
[320856122,1711639839841,-610.85,0.000485,120]
[320856125,1711639839871,-960.01640894,0.000485,120]
[320856126,1711639839886,-2004.93112973,0.000485,120]
[320856127,1711639839898,-468.15831744,0.000485,120]
[320856128,1711639839909,-3978.74159999,0.000485,120]
[320856129,1711639839922,-4568.12145839,0.000485,120]
[320856130,1711639839935,-273.7432171,0.000485,120]
[320856131,1711639839971,-165.76067859,0.00042,2]
[320856132,1711639839981,-187.20686686,0.00047568,2]
[320856133,1711639839992,-95.69517242,0.000485,120]
[320856134,1711639841867,-165.76067859,0.00042,2]
[320856135,1711639841876,-165.76067859,0.00042,2]
[320856136,1711639841886,-165.76067859,0.00042,2]
[320856137,1711639841895,-165.76067859,0.00042,2]
[320856138,1711639841906,-165.76067859,0.00042,2]
[320856139,1711639841916,-165.76067859,0.00042,2]
[320856141,1711639841926,-165.76067859,0.00042,2]
[320856143,1711639841935,-165.76067859,0.00042,2]
[320856145,1711639841944,-165.76067859,0.00042,2]
[320856147,1711639841954,-165.76067859,0.00042,2]
[320856149,1711639841963,-165.76067859,0.00042,2]
[320856151,1711639841973,-165.76067859,0.00042,2]
[320856153,1711639841982,-165.76067859,0.00042,2]
[320856155,1711639841992,-36407.75949778,0.000485,120]
[320856158,1711639842004,-19798.37734337,0.000485,120]
[320856159,1711639842014,-151.68256544,0.00048503,38]
[320856160,1711639842023,-150.2,0.00048567,2]
[320856161,1711639842033,-344.88888889,0.00048603,120]
[320856162,1711639842047,-690.3,0.000487,7]
[320856163,1711639842056,-1035.0,0.000487,117]
[320856164,1711639842066,-2265.58000141,0.0004877,25]
[320856165,1711639842075,-1000.0,0.000488,17]
[320856166,1711639842085,-150.357,0.00048813,2]
[320856167,1711639842095,-150.0,0.00048813,2]
[320856168,1711639842104,-150.0,0.00048813,2]
[320856169,1711639842114,-150.536,0.00048813,2]
[320856170,1711639842124,-150.374,0.00048813,2]
[320856171,1711639842133,-263.044,0.00048813,2]
[320856172,1711639842143,-150.0,0.00048813,2]
[320856173,1711639842152,-425.0,0.0004885,15]
[320856174,1711639842161,-461.0,0.0004885,15]
[320856175,1711639842171,-425.0,0.0004886,15]
[320856176,1711639842181,-461.0,0.0004886,15]
[320856177,1711639842190,-344.93582419,0.00048868,2]
[320856178,1711639842200,-224.52808543,0.0004887,60]
[320856179,1711639842210,-26842.72447373,0.0004887,4]
[320856180,1711639842219,-199.04121336,0.0004887,2]
[320856181,1711639842228,-2957.62674015,0.0004887,4]
[320856182,1711639842238,-236.0242077,0.0004887,30]
[320856183,1711639842247,-2395.65757029,0.0004887,60]
[320856184,1711639842257,-721.2841,0.0004887,4]
[320856186,1711639842266,-461.0,0.0004887,15]
[320856188,1711639842275,-425.0,0.0004887,15]
[320856190,1711639842285,-3796.0,0.00048877,30]
[320856191,1711639842294,-1213.40718584,0.00048877,2]
[320856192,1711639842303,-150.0,0.00048879,30]
[320856193,1711639842312,-150.0,0.00048879,30]
[320856194,1711639842321,-270397.46566602,0.0004888,2]
[320856198,1711639842566,-165.76067859,0.00042,2]
[320856199,1711639842576,-275.06,0.0004849,30]
[320856200,1711639842586,-525.66,0.00048499,2]
[320856201,1711639842595,-1221.38473027,0.0004888,2]
[320856202,1711639842632,-538.79284284,0.0004888,2]
[320856203,1711639842761,-5736.00401341,0.0004888,2]
[320856204,1711639842774,-1863.21494457,0.0004888,2]
[320856205,1711639842786,-7094.48913309,0.0004888,2]
[320856206,1711639842797,-1685.6407055,0.0004888,2]
[320856207,1711639842818,-3631.38389956,0.0004888,2]
[320856208,1711639842880,-569.85819587,0.0004888,2]
[320856209,1711639842891,-2480.92193386,0.0004888,2]
[320856210,1711639842909,-1416.925,0.0004888,2]
[320856211,1711639843046,-1267.82998508,0.0004888,2]
[320856246,1711639845596,-202.65325,0.00043014,14]
[320856247,1711639845606,-202.65325,0.00043836,14]
[320856248,1711639845615,-150.01,0.00048465,2]
[320856249,1711639845624,-174.7742878,0.00048499,4]
[320856250,1711639845634,-2125.33,0.000488,30]
[320856251,1711639845643,-1992.87299458,0.0004888,2]
[320856252,1711639845660,-1182.99649901,0.0004888,2]
[320856253,1711639845676,-44040.71046421,0.0004888,2]
[320856254,1711639845687,-757.39838594,0.0004888,2]
[320856255,1711639845699,-791.09059865,0.0004888,2]
[320856256,1711639845712,-4143.81478899,0.0004888,2]
[320856257,1711639845724,-477.47315137,0.0004888,2]
[320856258,1711639845737,-319.31715993,0.0004888,2]
[320856259,1711639845819,-2037.18162,0.0004888,2]
[320856260,1711639845837,-2058.19858542,0.0004888,2]
[320856261,1711639845849,-1362.31727872,0.0004888,2]
[320856262,1711639845868,-26707.44421196,0.0004888,2]
[320856263,1711639845880,-14612.17071175,0.0004888,2]
[320856264,1711639845891,-121904.08813663,0.0004888,2]
[320856265,1711639845904,-2414.06704506,0.0004888,2]
[320856266,1711639845915,-10804.58316201,0.0004888,2]
[320856267,1711639845951,-77686.07262296,0.0004888,2]
[320856268,1711639845960,-215088.08610902,0.0004888,2]
[320856269,1711639845972,-1468.92967325,0.0004888,2]
[320856343,1711640030912,152.30107003,0.00040732,36]
[320856344,1711640093610,359.07490846,0.0001,2]